bitfinex/quotes_BTCUSD_20241022
["timestamp","ask_amount","ask_price","bid_price","bid_amount"]
[1729589625816,0.00265,66915.0,66914.0,0.18406169]
[1729589626504,0.00265,66915.0,66914.0,0.03461669]
[1729589626950,0.00265,66915.0,66914.0,0.18406169]
[1729589627918,0.00265,66915.0,66914.0,0.39575031]
[1729589628148,0.00265,66915.0,66914.0,0.51621313]
[1729589628367,0.00265,66915.0,66914.0,0.66517228]
[1729589628597,0.00265,66915.0,66914.0,0.56472074]
[1729589629057,0.00265,66915.0,66914.0,0.73562074]
[1729589629557,0.00265,66915.0,66914.0,0.73162074]
[1729589629810,0.00265,66915.0,66914.0,0.73862074]
[1729589630090,0.00265,66915.0,66914.0,0.74362074]
[1729589630320,0.00165,66915.0,66914.0,0.90966529]
[1729589630569,0.00165,66915.0,66914.0,0.91166529]
[1729589630570,0.00265,66915.0,66914.0,0.91166529]
[1729589630900,0.00265,66915.0,66914.0,0.9295232]
[1729589631088,0.00365,66915.0,66914.0,0.9395232]
[1729589631789,0.00365,66915.0,66914.0,0.9295232]
[1729589632017,0.00265,66915.0,66914.0,0.9295232]
[1729589632260,0.00165,66915.0,66914.0,0.9225232]
[1729589632522,0.00165,66915.0,66914.0,0.8511468]
[1729589632987,0.00265,66915.0,66914.0,0.8621468]
[1729589633227,0.00265,66915.0,66914.0,0.8611468]
[1729589633492,0.00365,66915.0,66914.0,0.8721468]
[1729589633715,0.00265,66915.0,66914.0,0.84428889]
[1729589633952,0.00265,66915.0,66914.0,0.86217261]
[1729589634201,0.00365,66915.0,66914.0,0.87217261]
[1729589635639,0.00365,66915.0,66914.0,0.80912806]
[1729589639352,0.00365,66915.0,66914.0,0.80412806]
[1729589639572,0.00365,66915.0,66914.0,0.57180456]
[1729589639785,0.00365,66915.0,66914.0,0.70912806]
[1729589640696,0.00365,66915.0,66914.0,0.69124434]
[1729589640917,0.00365,66915.0,66914.0,0.80913234]
[1729589641144,0.00365,66915.0,66914.0,0.57950884]
[1729589641612,0.00365,66915.0,66914.0,0.55487413]
[1729589641836,0.00365,66915.0,66914.0,0.44502084]
[1729589642795,0.00265,66915.0,66914.0,0.44002084]
[1729589643019,0.00265,66915.0,66914.0,0.46302084]
[1729589643260,0.00265,66915.0,66914.0,0.46202084]
[1729589643494,0.00365,66915.0,66914.0,0.47002084]
[1729589643733,0.00165,66915.0,66914.0,0.45202084]
[1729589643950,0.00265,66915.0,66914.0,0.45902084]
[1729589644203,0.00365,66915.0,66914.0,0.46502084]
[1729589644456,0.00365,66915.0,66914.0,0.74991328]
[1729589644457,0.00265,66915.0,66914.0,0.74991328]
[1729589644681,0.00265,66915.0,66914.0,0.62323573]
[1729589645863,0.00365,66915.0,66914.0,0.63123573]
[1729589646110,0.00365,66915.0,66914.0,0.85970467]
[1729589646111,0.00465,66915.0,66914.0,0.85970467]
[1729589646361,0.00465,66915.0,66914.0,0.97799847]
[1729589646362,0.00165,66915.0,66914.0,0.97799847]
[1729589646862,0.00365,66915.0,66914.0,0.99399847]
[1729589647115,0.00265,66915.0,66914.0,0.96610708]
[1729589647356,0.00265,66915.0,66914.0,0.98599455]
[1729589647608,0.00265,66915.0,66914.0,0.93740075]
[1729589648124,0.00265,66915.0,66914.0,0.98398837]
[1729589648892,0.00165,66915.0,66914.0,0.97598837]
[1729589649138,0.00265,66915.0,66914.0,0.98498837]
[1729589649381,0.00265,66915.0,66914.0,0.79323181]
[1729589649633,0.00165,66915.0,66914.0,0.78423181]
[1729589649875,0.00265,66915.0,66914.0,0.79423181]
[1729589650118,0.00265,66915.0,66914.0,0.79323181]
[1729589650383,0.00265,66915.0,66914.0,0.93255935]
[1729589650633,0.00265,66915.0,66914.0,0.93355935]
[1729589650902,0.00365,66915.0,66914.0,0.80323181]
[1729589651130,0.00365,66915.0,66914.0,0.78023181]
[1729589651367,0.00265,66915.0,66914.0,0.77023181]
[1729589651599,0.00365,66915.0,66914.0,0.78023181]
[1729589652059,0.00365,66915.0,66914.0,0.92248783]
[1729589652298,0.00365,66915.0,66914.0,0.94548783]
[1729589652521,0.00265,66915.0,66914.0,0.92439637]
[1729589652747,0.00265,66915.0,66914.0,0.91702938]
[1729589653011,0.00365,66915.0,66914.0,0.92602938]
[1729589653259,0.00265,66915.0,66914.0,0.91602938]
[1729589653483,0.00265,66915.0,66914.0,0.91702938]
[1729589653720,0.00365,66915.0,66914.0,0.92602938]
[1729589654710,0.00365,66915.0,66914.0,0.92802938]
[1729589654959,0.00365,66915.0,66914.0,0.92602938]
[1729589655674,0.00365,66915.0,66914.0,0.78377336]
[1729589656384,0.00365,66915.0,66914.0,0.92109686]
[1729589656906,0.00365,66915.0,66914.0,0.96768715]
[1729589657160,0.00365,66915.0,66914.0,1.03477203]
[1729589657389,0.00165,66922.0,66921.0,0.17906371]
[1729589657631,0.00165,66922.0,66921.0,0.6092217]
[1729589657977,0.00165,66922.0,66921.0,0.60623383]
[1729589659829,0.00265,66922.0,66921.0,0.62023383]
[1729589660311,0.00265,66922.0,66921.0,0.63323383]
[1729589660525,0.00265,66922.0,66921.0,0.68346973]
[1729589660785,0.00265,66922.0,66921.0,0.67046973]
[1729589661235,0.00265,66922.0,66921.0,0.68446973]
[1729589662645,0.00265,66922.0,66921.0,0.73109328]
[1729589663584,0.00265,66922.0,66921.0,0.68446973]
[1729589663812,0.00265,66922.0,66921.0,0.73109556]
[1729589664549,0.00265,66922.0,66921.0,0.68446973]
[1729589664792,0.00265,66922.0,66921.0,0.63423383]
[1729589665235,0.00265,66922.0,66921.0,0.61634636]
[1729589665456,0.00265,66922.0,66921.0,0.63424792]
[1729589665666,0.00265,66922.0,66921.0,0.49692442]
[1729589666580,0.00265,66922.0,66921.0,0.6186311]
[1729589667741,0.00265,66922.0,66921.0,0.49692442]
[1729589669159,0.00265,66922.0,66921.0,0.49692338]
[1729589670156,0.00265,66922.0,66921.0,0.48692338]
[1729589670394,0.00265,66922.0,66921.0,0.43202286]
[1729589670639,0.00165,66922.0,66921.0,0.41802286]
[1729589670881,0.00165,66922.0,66921.0,0.42802286]
[1729589671110,0.00165,66922.0,66921.0,0.43802286]
[1729589671111,0.00265,66922.0,66921.0,0.43802286]
[1729589671363,0.00265,66922.0,66921.0,0.44702286]
[1729589671842,0.00265,66922.0,66921.0,0.34602286]
[1729589672298,0.00165,66922.0,66921.0,0.33602286]
[1729589672579,0.00165,66922.0,66921.0,0.005]
[1729589672795,0.00165,66922.0,66921.0,0.01463471]
[1729589673291,0.00365,66922.0,66921.0,0.03163471]
[1729589673528,0.00265,66922.0,66921.0,0.01463471]
[1729589673748,0.00165,66922.0,66921.0,0.01463471]
[1729589673973,0.00165,66922.0,66921.0,0.01563471]
[1729589674689,0.00365,66922.0,66921.0,0.01563471]
[1729589675380,0.00365,66922.0,66921.0,0.01463471]
[1729589675599,0.00465,66922.0,66921.0,0.01463471]
[1729589678914,0.00465,66922.0,66921.0,0.00963471]
[1729589679145,0.00465,66922.0,66921.0,0.005]
[1729589679617,0.00465,66922.0,66918.0,0.005]
[1729589679618,0.00165,66922.0,66918.0,0.005]
[1729589679858,0.00165,66922.0,66915.0,0.000825]
[1729589679859,0.322229,66921.0,66920.0,0.005]
[1729589681261,0.323229,66921.0,66920.0,0.005]
[1729589681508,0.322229,66921.0,66920.0,0.005]
[1729589682426,0.322229,66921.0,66917.0,0.005]
[1729589682427,0.149436,66918.0,66917.0,0.005]
[1729589682678,0.1728,66921.0,66920.0,0.005]
[1729589682925,0.1778,66921.0,66920.0,0.005]
[1729589683184,0.1818,66921.0,66920.0,0.005]
[1729589683422,0.1768,66921.0,66920.0,0.005]
[1729589683662,0.1798,66921.0,66920.0,0.006]
[1729589683905,0.1798,66921.0,66920.0,0.005]
[1729589683906,0.1728,66921.0,66920.0,0.005]
[1729589684435,0.1808,66921.0,66920.0,0.005]
[1729589684655,0.008,66921.0,66920.0,0.16406671]
[1729589685143,0.157429,66921.0,66920.0,0.005]
[1729589685368,0.4441865,66921.0,66915.0,0.005825]
[1729589685624,0.2867595,66918.0,66917.0,0.005]
[1729589685846,0.149436,66918.0,66916.0,0.005]
[1729589686095,0.477464,66920.0,66917.0,0.005]
[1729589686096,0.149435,66919.0,66917.0,0.005]
[1729589686544,0.149436,66918.0,66917.0,0.005]
[1729589686996,0.150436,66918.0,66917.0,0.005]
[1729589687221,0.149436,66918.0,66917.0,0.005]
[1729589687913,0.149436,66918.0,66915.0,0.000825]
[1729589687914,0.149441,66916.0,66915.0,0.000825]
[1729589688151,0.46650015,66916.0,66915.0,0.000825]
[1729589688367,0.52976457,66916.0,66915.0,0.000825]
[1729589688790,0.55196835,66916.0,66915.0,0.000825]
[1729589688796,0.83788637,66916.0,66915.0,0.000825]
[1729589689303,0.74907125,66916.0,66915.0,0.000825]
[1729589689555,0.0827,66911.0,66908.0,0.22265268]
[1729589689802,0.3694795,66909.0,66908.0,0.22265268]
[1729589690055,0.24601286,66909.0,66908.0,0.22265268]
[1729589690307,0.24601286,66909.0,66903.0,0.005825]
[1729589690557,0.01385686,66908.0,66903.0,0.005825]
[1729589690807,0.31277586,66908.0,66903.0,0.005825]
[1729589691032,0.149463,66906.0,66903.0,0.005825]
[1729589692226,0.149466,66905.0,66903.0,0.005825]
[1729589692500,0.149466,66905.0,66903.0,0.006825]
[1729589692733,0.149466,66905.0,66903.0,0.007825]
[1729589692955,0.013847,66907.0,66903.0,0.005825]
[1729589693181,0.007,66906.0,66905.0,0.005]
[1729589693410,0.014,66906.0,66905.0,0.18709971]
[1729589693671,0.0992123,66916.0,66906.0,0.023]
[1729589693672,0.149448,66913.0,66906.0,0.023]
[1729589693903,0.149448,66913.0,66906.0,0.172461]
[1729589694143,0.22265268,66917.0,66903.0,0.000825]
[1729589694144,0.00165,66922.0,66913.0,0.03763471]
[1729589694376,0.151077,66922.0,66921.0,0.005]
[1729589695122,0.300505,66922.0,66921.0,0.005]
[1729589695348,0.449932,66922.0,66921.0,0.005]
[1729589696558,0.455932,66922.0,66921.0,0.006]
[1729589696781,0.157077,66922.0,66921.0,0.006]
[1729589697005,0.162077,66922.0,66921.0,0.007]
[1729589697914,0.156077,66922.0,66921.0,0.006]
[1729589698151,0.156077,66922.0,66921.0,0.001]
[1729589698152,0.00665,66922.0,66921.0,0.001]
[1729589698401,0.62075965,66922.0,66921.0,0.001]
[1729589698637,0.75808315,66922.0,66921.0,0.001]
[1729589698859,0.75808315,66922.0,66909.0,0.22265268]
[1729589698860,0.149454,66910.0,66909.0,0.22265268]
[1729589699512,0.4362275,66911.0,66907.0,0.005]
[1729589699513,0.149458,66908.0,66907.0,0.005]
[1729589700803,0.149458,66908.0,66907.0,0.008]
[1729589701019,0.4362275,66911.0,66907.0,0.008]
[1729589701239,0.149458,66908.0,66907.0,0.008]
[1729589701720,0.22265268,66919.0,66907.0,0.008]
[1729589701721,0.298888,66915.0,66907.0,0.008]
[1729589701940,0.14945,66912.0,66907.0,0.008]
[1729589702167,0.149449,66913.0,66907.0,0.013]
[1729589702395,0.1373235,66923.0,66909.0,0.005]
[1729589702624,0.298876,66918.0,66912.0,0.005]
[1729589702863,0.149439,66917.0,66912.0,0.005]
[1729589703080,0.149444,66915.0,66912.0,0.005]
[1729589703303,0.149445,66914.0,66912.0,0.005]
[1729589703522,0.149447,66913.0,66912.0,0.005]
[1729589704000,0.006,66915.0,66912.0,0.005]
[1729589704213,0.1373235,66914.0,66908.0,0.023]
[1729589704435,0.149456,66909.0,66908.0,0.023]
[1729589705117,0.59779,66913.0,66908.0,0.023]
[1729589705118,0.14945,66912.0,66911.0,0.005]
[1729589705343,0.298895,66913.0,66908.0,0.023]
[1729589705344,0.298905,66911.0,66908.0,0.023]
[1729589705564,0.304895,66913.0,66912.0,0.001]
[1729589705995,0.149454,66910.0,66908.0,0.023]
[1729589706255,0.149456,66909.0,66908.0,0.023]
[1729589706470,0.149454,66911.0,66908.0,0.023]
[1729589706694,0.149455,66910.0,66908.0,0.023]
[1729589706936,0.298904,66911.0,66908.0,0.023]
[1729589707156,0.006,66909.0,66908.0,0.024]
[1729589707387,0.14945,66912.0,66911.0,0.005]
[1729589707604,0.16333775,66912.0,66911.0,0.005]
[1729589708124,0.16333741,66912.0,66911.0,0.005]
[1729589708560,0.14945,66912.0,66911.0,0.005]
[1729589708778,0.006,66912.0,66911.0,0.006]
[1729589709446,0.01989292,66912.0,66911.0,0.006]
[1729589709669,0.01989292,66912.0,66911.0,0.18908671]
[1729589709670,0.02589292,66912.0,66911.0,0.18908671]
[1729589709892,0.012,66912.0,66911.0,0.41934586]
[1729589710115,0.012,66912.0,66911.0,0.56672136]
[1729589710555,0.006,66912.0,66911.0,0.41834586]
[1729589711462,0.00165,66922.0,66921.0,0.177429]
[1729589711724,0.00165,66922.0,66921.0,0.33602286]
[1729589711951,0.00165,66922.0,66921.0,0.62392286]
[1729589712177,0.00165,66922.0,66921.0,0.77288201]
[1729589714045,0.00165,66922.0,66921.0,0.78088201]
[1729589714527,0.00165,66922.0,66921.0,0.77288201]
[1729589714993,0.00165,66922.0,66921.0,0.78288201]
[1729589715220,0.00265,66922.0,66921.0,0.78288201]
[1729589715450,0.00265,66922.0,66921.0,0.78388201]
[1729589715694,0.00165,66922.0,66921.0,0.77288201]
[1729589715916,0.00265,66922.0,66921.0,0.78688201]
[1729589716136,0.00165,66939.0,66921.0,0.78688201]
[1729589716137,0.00165,66936.0,66935.0,0.47203271]
[1729589716354,0.00165,66936.0,66935.0,0.75831536]
[1729589717961,0.00165,66936.0,66935.0,0.76831536]
[1729589718252,0.00165,66939.0,66938.0,0.19202571]
[1729589718253,0.0003,66939.0,66938.0,0.19202571]
[1729589718471,0.0003,66939.0,66938.0,0.87459101]
[1729589718689,0.0003,66939.0,66938.0,0.95749101]
[1729589719137,0.001692,66968.0,66965.0,0.005]
[1729589719416,0.001692,66968.0,66965.0,0.028]
[1729589719649,0.001694,66966.0,66965.0,0.028]
[1729589720095,0.001694,66966.0,66965.0,0.177331]
[1729589720554,0.001694,66966.0,66965.0,0.28766285]
[1729589721503,0.001694,66966.0,66965.0,0.18696571]
[1729589722179,0.001694,66966.0,66965.0,0.18796571]
[1729589722641,0.001694,66966.0,66965.0,0.18696571]
[1729589723086,0.001694,66966.0,66965.0,0.18896571]
[1729589724650,0.001694,66966.0,66965.0,0.18696571]
[1729589724863,0.001694,66966.0,66965.0,0.03763471]
[1729589725091,0.001694,66966.0,66965.0,0.18796571]
[1729589725311,0.001694,66966.0,66965.0,0.18896571]
[1729589725525,0.001694,66966.0,66965.0,0.18796571]
[1729589726027,0.001694,66966.0,66965.0,0.18696571]
[1729589726243,0.004694,66966.0,66965.0,0.18696571]
[1729589727648,0.001694,66966.0,66965.0,0.18696571]
[1729589727889,0.006694,66966.0,66965.0,0.18696571]
[1729589728363,0.006694,66966.0,66965.0,0.33891122]
[1729589728654,0.006694,66966.0,66965.0,0.33592486]
[1729589730797,0.001694,66966.0,66965.0,0.33592486]
[1729589731313,0.003694,66966.0,66965.0,0.33592486]
[1729589731557,0.003694,66966.0,66965.0,0.18696571]
[1729589732027,0.003694,66966.0,66965.0,0.19536097]
[1729589732261,0.003694,66966.0,66965.0,0.18572626]
[1729589732507,0.003694,66966.0,66965.0,0.19536097]
[1729589733196,0.003694,66966.0,66965.0,0.17236097]
[1729589733437,0.003694,66966.0,66965.0,0.19536097]
[1729589733738,0.00351415,66966.0,66965.0,0.18572626]
[1729589733788,0.00151415,66966.0,66965.0,0.19536097]
[1729589734145,0.00351415,66966.0,66965.0,0.19536097]
[1729589735415,0.00151415,66966.0,66965.0,0.19536097]
[1729589736502,0.00151415,66966.0,66965.0,0.17436097]
[1729589736704,0.00151415,66966.0,66965.0,0.17236097]
[1729589736927,0.00151415,66966.0,66965.0,0.19536097]
[1729589737369,0.00551415,66966.0,66965.0,0.19536097]
[1729589738233,0.00351415,66966.0,66965.0,0.19536097]
[1729589738676,0.00551415,66966.0,66965.0,0.19536097]
[1729589738949,0.00151415,66966.0,66965.0,0.19636097]
[1729589739628,0.00151415,66966.0,66965.0,0.42369102]
[1729589739851,0.00351415,66966.0,66965.0,0.34432012]
[1729589740305,0.00451415,66966.0,66965.0,0.34432012]
[1729589740517,0.00351415,66966.0,66965.0,0.34432012]
[1729589741153,0.00151415,66966.0,66965.0,0.34432012]
[1729589741363,0.00151415,66966.0,66965.0,0.19536097]
[1729589741591,0.00151415,66966.0,66965.0,0.19736097]
[1729589741805,0.00151415,66966.0,66965.0,0.19536097]
[1729589742009,0.00151415,66966.0,66965.0,0.04602997]
[1729589742237,0.00251415,66966.0,66965.0,0.04802997]
[1729589742693,0.00251415,66966.0,66965.0,0.04602997]
[1729589743139,0.00251415,66966.0,66965.0,0.04702997]
[1729589743573,0.00251415,66966.0,66965.0,0.19636097]
[1729589744057,0.00151415,66966.0,66965.0,0.19636097]
[1729589744267,0.00251415,66966.0,66965.0,0.19636097]
[1729589745598,0.00251415,66966.0,66965.0,0.27573187]
[1729589746092,0.00251415,66966.0,66965.0,0.19636097]
[1729589747213,0.00251415,66966.0,66965.0,0.04702997]
[1729589747854,0.00251415,66966.0,66965.0,0.18796571]
[1729589748061,0.00251415,66966.0,66965.0,0.19632303]
[1729589750437,0.00251415,66966.0,66965.0,0.34528218]
[1729589750885,0.00251415,66966.0,66965.0,0.47604302]
[1729589753118,0.00251415,66966.0,66965.0,0.34528218]
[1729589754688,0.00251415,66966.0,66965.0,0.17332303]
[1729589755801,0.00251415,66966.0,66965.0,0.17232303]
[1729589756021,0.00251415,66966.0,66965.0,0.19632303]
[1729589756237,0.00151415,66966.0,66965.0,0.19632303]
[1729589756446,0.00151415,66966.0,66965.0,0.19532303]
[1729589756662,0.00251415,66966.0,66965.0,0.19532303]
[1729589756861,0.00151415,66966.0,66965.0,0.19532303]
[1729589757285,0.00151415,66966.0,66965.0,0.19732303]
[1729589757931,0.00151415,66966.0,66965.0,0.20032303]
[1729589760095,0.00151415,66966.0,66965.0,0.20114803]
[1729589760513,0.00151415,66966.0,66965.0,0.34810718]
[1729589760744,0.00151415,66966.0,66965.0,0.47894916]
[1729589760967,0.00151415,66966.0,66965.0,0.47594916]
[1729589761388,0.00151415,66966.0,66965.0,0.47694916]
[1729589761598,0.00251415,66966.0,66965.0,0.47694916]
[1729589761808,0.00251415,66966.0,66965.0,0.34510718]
[1729589762023,0.00251415,66966.0,66965.0,0.34810718]
[1729589762889,0.00151415,66966.0,66965.0,0.34810718]
[1729589763316,0.00151415,66966.0,66965.0,0.35010718]
[1729589767543,0.00151415,66966.0,66965.0,0.34510718]
[1729589767967,0.00251415,66966.0,66965.0,0.34610718]
[1729589768201,0.00251415,66966.0,66965.0,0.19714803]
[1729589768422,0.00251415,66966.0,66965.0,0.04681703]
[1729589768636,0.00251415,66966.0,66965.0,0.19714803]
[1729589768843,0.00151415,66966.0,66965.0,0.04781703]
[1729589769053,0.00151415,66966.0,66965.0,0.19714803]
[1729589769274,0.00151415,66966.0,66965.0,0.19614803]
[1729589770200,0.00251415,66966.0,66965.0,0.19614803]
[1729589770425,0.00151415,66966.0,66965.0,0.19614803]
[1729589770652,0.00151415,66966.0,66965.0,0.19714803]
[1729589771732,0.00151415,66966.0,66965.0,0.19614803]
[1729589772192,0.00151415,66966.0,66965.0,0.19714803]
[1729589772629,0.00151415,66966.0,66965.0,0.19614803]
[1729589773552,0.00251415,66966.0,66965.0,0.04681703]
[1729589773797,0.00251415,66966.0,66965.0,0.19614803]
[1729589774015,0.00251415,66966.0,66965.0,0.19714803]
[1729589774933,0.00251415,66966.0,66965.0,0.20238996]
[1729589775390,0.00251415,66966.0,66965.0,0.53884911]
[1729589776392,0.001692,66970.0,66965.0,0.53884911]
[1729589776393,0.001692,66970.0,66969.0,0.01963471]
[1729589776599,0.001692,66986.0,66980.0,0.63357971]
[1729589776600,0.22434468,66986.0,66980.0,0.63357971]
[1729589776828,0.22434468,66986.0,66980.0,0.65021536]
[1729589777053,0.001692,66986.0,66980.0,0.65021536]
[1729589777520,0.001692,66986.0,66980.0,0.69987037]
[1729589778442,0.001692,66986.0,66980.0,0.70987037]
[1729589778943,0.001692,66986.0,66980.0,0.72087037]
[1729589779385,0.001692,66986.0,66980.0,0.82087037]
[1729589779603,0.001692,66986.0,66980.0,0.96319387]
[1729589779819,0.001692,66986.0,66980.0,0.95319387]
[1729589780273,0.001692,66986.0,66980.0,0.82587037]
[1729589780496,0.001692,66986.0,66980.0,0.95819387]
[1729589780718,0.001692,66986.0,66980.0,1.00820199]
[1729589781173,0.001692,66986.0,66980.0,0.99720199]
[1729589781389,0.001692,66986.0,66980.0,0.99920199]
[1729589781627,0.001692,66986.0,66980.0,0.83487037]
[1729589781844,0.001692,66986.0,66980.0,0.99720199]
[1729589782301,0.001692,66986.0,66980.0,1.01120199]
[1729589782809,0.001692,66986.0,66985.0,0.43924521]
[1729589783033,0.001692,66986.0,66985.0,0.91046351]
[1729589783257,0.001692,66986.0,66985.0,0.96154657]
[1729589783702,0.001692,66986.0,66985.0,0.91046351]
[1729589784625,0.001692,66986.0,66985.0,0.92446351]
[1729589784845,0.001692,66986.0,66985.0,0.96268186]
[1729589785343,0.001692,66986.0,66985.0,0.97668186]
[1729589785813,0.001692,66986.0,66985.0,0.97868186]
[1729589786235,0.001692,66986.0,66985.0,0.99068186]
[1729589787133,0.1,67000.0,66985.0,0.99068186]
[1729589787134,0.1,67000.0,66999.0,0.60791321]
[1729589787357,0.1,67000.0,66999.0,0.90583151]
[1729589787569,0.1,67000.0,66999.0,0.80123151]
[1729589787787,0.1,67000.0,66999.0,0.80623151]
[1729589788023,0.1,67000.0,66999.0,0.80123151]
[1729589788244,0.1,67000.0,66999.0,0.43584886]
[1729589788686,0.1,67000.0,66999.0,0.44584886]
[1729589789168,0.1,67000.0,66999.0,0.68350154]
[1729589789393,0.1,67000.0,66999.0,0.46084886]
[1729589789640,0.1,67000.0,66999.0,0.66202636]
[1729589791141,0.1,67000.0,66999.0,0.45584886]
[1729589791395,0.1,67000.0,66999.0,0.43284886]
[1729589792377,0.1,67000.0,66999.0,0.42284886]
[1729589792626,0.1,67000.0,66999.0,0.44684886]
[1729589793077,0.1,67000.0,66999.0,0.44584886]
[1729589794194,0.1,67000.0,66999.0,0.43584886]
[1729589794427,0.1,67000.0,66999.0,0.43784886]
[1729589794895,0.1,67000.0,66999.0,0.43684886]
[1729589795125,0.1,67000.0,66999.0,0.43884886]
[1729589795372,0.1,67000.0,66999.0,0.43784886]
[1729589795604,0.1,67000.0,66999.0,0.43984886]
[1729589796585,0.10165,67000.0,66999.0,0.43984886]
[1729589796908,0.10165,67000.0,66999.0,0.007]
[1729589797120,0.10165,67000.0,66999.0,0.53750154]
[1729589797343,0.10165,67000.0,66999.0,0.31584886]
[1729589798032,0.10165,67000.0,66999.0,0.33884886]
[1729589798677,0.10165,67000.0,66999.0,0.18988971]
[1729589800232,0.10165,67000.0,66999.0,0.04063471]
[1729589801292,0.10165,67000.0,66999.0,0.031]
[1729589801498,0.10165,67000.0,66999.0,0.18688971]
[1729589801965,0.10465,67000.0,66999.0,0.18688971]
[1729589803067,0.10465,67000.0,66997.0,0.005]
[1729589803316,0.10465,67000.0,66989.0,0.22265268]
[1729589803317,0.14926,66997.0,66995.0,0.023]
[1729589803578,0.10465,67000.0,66995.0,0.023]
[1729589803784,0.1373235,66996.0,66993.0,0.005]
[1729589803998,0.0906,66999.0,66993.0,0.005]
[1729589804258,0.149258,66998.0,66993.0,0.005]
[1729589805213,0.149258,66998.0,66993.0,0.006]
[1729589805433,0.149258,66998.0,66993.0,0.005]
[1729589805693,0.149263,66996.0,66993.0,0.005]
[1729589805919,0.14926,66997.0,66993.0,0.005]
[1729589806139,0.14926,66997.0,66993.0,0.006]
[1729589807308,0.14926,66997.0,66993.0,0.005]
[1729589807537,0.001,66997.0,66993.0,0.005]
[1729589807750,0.001,66997.0,66993.0,0.006]
[1729589808215,0.001,66997.0,66993.0,0.005]
[1729589810071,0.149262,66996.0,66993.0,0.005]
[1729589810289,0.001,66997.0,66993.0,0.005]
[1729589810508,0.149262,66996.0,66993.0,0.005]
[1729589810999,0.001,66997.0,66993.0,0.005]
[1729589811662,0.149259,66998.0,66993.0,0.006]
[1729589811887,0.2279235,66999.0,66993.0,0.006]
[1729589812106,0.14926,66997.0,66993.0,0.005]
[1729589813525,0.149263,66996.0,66993.0,0.005]
[1729589814610,0.298519,66998.0,66993.0,0.005]
[1729589814834,0.298519,66998.0,66993.0,0.006]
[1729589815041,0.149264,66996.0,66993.0,0.006]
[1729589815493,0.149264,66996.0,66993.0,0.005]
[1729589816375,0.300519,66998.0,66993.0,0.005]
[1729589816587,0.149261,66997.0,66993.0,0.005]
[1729589818455,0.150261,66997.0,66993.0,0.005]
[1729589819299,0.298525,66996.0,66993.0,0.005]
[1729589819511,0.149271,66993.0,66989.0,0.005]
[1729589819753,0.001,66997.0,66986.0,0.005824]
[1729589819754,0.2193235,66994.0,66986.0,0.005824]
[1729589819986,0.149282,66987.0,66986.0,0.000824]
[1729589820237,0.3792055,66987.0,66986.0,0.000824]
[1729589820955,0.67851512,66987.0,66986.0,0.000824]
[1729589821191,0.77629582,66987.0,66986.0,0.000824]
[1729589821624,0.78129582,66987.0,66986.0,0.001824]
[1729589821867,0.89271984,66987.0,66986.0,0.002824]
[1729589822091,0.78225276,66987.0,66986.0,0.002824]
[1729589822351,1.02157626,66987.0,66986.0,0.002824]
[1729589822590,1.01957626,66987.0,66986.0,0.002824]
[1729589823035,0.88225276,66987.0,66986.0,0.002824]
[1729589823959,0.99360446,66987.0,66986.0,0.002824]
[1729589824167,0.88225276,66987.0,66986.0,0.002824]
[1729589824628,1.13088649,66987.0,66986.0,0.002824]
[1729589824864,1.13088649,66987.0,66965.0,0.01106693]
[1729589824865,0.149309,66975.0,66965.0,0.00606693]
[1729589825081,0.2866325,66975.0,66965.0,0.00606693]
[1729589825738,0.149329,66966.0,66965.0,0.00606693]
[1729589825974,0.2866525,66966.0,66965.0,0.00606693]
[1729589826877,0.3677525,66966.0,66965.0,0.00606693]
[1729589828198,0.3737525,66966.0,66965.0,0.00606693]
[1729589828408,0.3727525,66966.0,66965.0,0.00706693]
[1729589828853,0.3807525,66966.0,66965.0,0.00706693]
[1729589829258,0.3727525,66966.0,66941.0,0.005]
[1729589829259,0.149378,66944.0,66943.0,0.005]
[1729589829450,1.194668,66964.0,66949.0,0.22265268]
[1729589829451,0.149365,66950.0,66949.0,0.22265268]
[1729589829790,0.149365,66950.0,66939.0,0.000825]
[1729589829791,0.149387,66940.0,66939.0,0.000825]
[1729589830014,0.2867105,66940.0,66939.0,0.000825]
[1729589830252,0.57299315,66940.0,66939.0,0.000825]
[1729589830492,0.67799315,66940.0,66939.0,0.000825]
[1729589831679,0.2917265,66933.0,66932.0,0.22265268]
[1729589831905,0.44068565,66933.0,66932.0,0.22265268]
[1729589832124,0.44068565,66933.0,66922.0,0.000825]
[1729589832125,0.14942,66925.0,66922.0,0.000825]
[1729589832368,0.3867435,66925.0,66922.0,0.000825]
[1729589832563,0.249425,66923.0,66922.0,0.000825]
[1729589832782,0.26327029,66923.0,66922.0,0.000825]
[1729589833466,0.55455294,66923.0,66922.0,0.000825]
[1729589833700,0.41722944,66923.0,66922.0,0.000825]
[1729589833923,0.41719299,66923.0,66922.0,0.000825]
[1729589834599,0.55451649,66923.0,66922.0,0.000825]
[1729589834809,0.56851649,66923.0,66922.0,0.000825]
[1729589835258,0.43119299,66923.0,66922.0,0.000825]
[1729589835469,0.66451649,66923.0,66922.0,0.000825]
[1729589835901,0.67851649,66923.0,66922.0,0.000825]
[1729589836114,0.529079,66920.0,66909.0,0.22265268]
[1729589836331,0.69184699,66920.0,66909.0,0.22265268]
[1729589836608,0.72309,66920.0,66909.0,0.22265268]
[1729589837946,0.31739115,66920.0,66909.0,0.22265268]
[1729589838204,0.45471465,66920.0,66909.0,0.22265268]
[1729589839542,0.46847503,66920.0,66909.0,0.22265268]
[1729589840194,0.46871465,66920.0,66909.0,0.22265268]
[1729589840423,0.44071465,66920.0,66909.0,0.22265268]
[1729589840872,0.46871465,66920.0,66909.0,0.22265268]
[1729589841310,0.45471465,66920.0,66909.0,0.22265268]
[1729589841538,0.149432,66920.0,66909.0,0.30695268]
[1729589841766,0.163432,66920.0,66909.0,0.30695268]
[1729589842003,0.45471465,66920.0,66907.0,0.000825]
[1729589842219,0.45471465,66920.0,66910.0,0.22265268]
[1729589842220,0.44071465,66920.0,66910.0,0.22265268]